bitfinex/quotes_ETHUSD_20220111
["timestamp","ask_amount","ask_price","bid_price","bid_amount"]
[1641930764140,0.447,3242.8,3242.6,0.25]
[1641930764335,0.447,3242.7,3241.9,0.25]
[1641930764534,0.747,3242.7,3241.9,0.25]
[1641930764738,0.747,3242.7,3242.1,0.00511582]
[1641930765599,0.747,3242.7,3242.2,2.62816667]
[1641930765998,0.747,3242.7,3242.3,0.00397897]
[1641930766804,3.67985238,3242.7,3242.3,0.00397897]
[1641930767000,3.61377165,3242.7,3242.3,0.00397897]
[1641930767304,3.59829232,3242.7,3242.3,0.00397897]
[1641930767501,0.747,3242.7,3242.3,0.00397897]
[1641930767901,0.447,3242.7,3242.3,0.00397897]
[1641930768101,0.747,3242.7,3242.3,0.00397897]
[1641930768831,1.90380086,3242.9,3242.3,0.00397897]
[1641930769037,0.447,3242.8,3242.3,0.00397897]
[1641930769442,1.08326902,3242.6,3242.3,0.00397897]
[1641930769634,1.53026902,3242.6,3242.3,0.00397897]
[1641930770037,1.83026902,3242.6,3242.3,0.00397897]
[1641930770343,1.54239,3243.1,3242.3,0.00397897]
[1641930770344,0.447,3243.4,3242.3,0.01610543]
[1641930770538,0.447,3243.4,3242.3,0.80220543]
[1641930770737,0.00113684,3243.2,3242.4,0.00341054]
[1641930771539,0.00113684,3243.2,3242.4,2.63129134]
[1641930771941,0.00113684,3243.2,3242.5,0.00284212]
[1641930774599,0.00113684,3243.2,3242.4,0.00341054]
[1641930774996,0.00113684,3243.2,3242.4,0.30341054]
[1641930775199,0.00113684,3243.2,3243.0,0.01240661]
[1641930775396,0.00113684,3243.2,3243.1,4.95]
[1641930775599,0.00113684,3243.2,3243.1,3.7256]
[1641930776557,0.32559434,3243.2,3243.1,3.7256]
[1641930776756,0.32559434,3243.2,3242.7,1.4724]
[1641930777165,0.32559434,3243.2,3242.8,0.00113685]
[1641930778162,0.32559434,3243.2,3242.9,0.7708639]
[1641930778562,0.32559434,3243.2,3242.8,0.00113685]
[1641930779164,0.32559434,3243.2,3242.9,0.7708419]
[1641930779363,0.32559434,3243.2,3242.8,0.00113685]
[1641930780192,0.32559434,3243.2,3242.8,0.77202755]
[1641930780395,0.1027731,3243.7,3242.9,7.45438297]
[1641930780593,0.1027731,3243.7,3243.0,1.0]
[1641930780792,0.0022737,3243.6,3243.0,1.00113684]
[1641930780991,0.0022737,3243.6,3243.0,3.83344462]
[1641930781190,0.00170527,3243.5,3243.0,1.00113684]
[1641930781592,0.00113685,3243.4,3243.1,0.7708176]
[1641930781996,0.00113685,3243.4,3243.1,1.5415776]
[1641930782595,0.00113685,3243.4,3243.2,5.13736138]
[1641930782797,0.447,3244.8,3243.3,9.31896599]
[1641930782996,0.747,3244.8,3244.0,0.7705803]
[1641930783395,0.747,3244.8,3243.8,1.4164]
[1641930784442,0.07998305,3245.5,3243.8,5.44719973]
[1641930784638,0.447,3245.6,3243.8,6.10809973]
[1641930784841,0.00795793,3244.8,3244.0,1.54094]
[1641930785337,0.0073895,3244.7,3244.4,1.5409629]
[1641930785736,0.00682108,3244.6,3244.4,0.7705029]
[1641930786139,0.00625266,3244.5,3244.4,0.7705029]
[1641930786539,0.00625266,3244.5,3244.3,1.2451]
[1641930787037,0.00568423,3244.4,3244.3,1.2451]
[1641930787338,0.00568423,3244.4,3244.3,4.3951]
[1641930788594,0.00568423,3244.4,3244.3,1.2451]
[1641930789094,0.00568423,3244.4,3244.1,3.6535]
[1641930789490,0.00511581,3244.3,3244.1,3.6535]
[1641930789891,0.00454739,3244.2,3244.1,3.6535]
[1641930790790,0.00454739,3244.2,3244.0,8.3438]
[1641930790990,0.00454739,3244.2,3244.0,12.26]
[1641930791231,0.00397896,3244.1,3244.0,12.26]
[1641930792134,0.00397896,3244.1,3244.0,3.7303]
[1641930792338,0.00397896,3244.1,3243.9,2.765532]
[1641930792537,0.00397896,3244.1,3243.9,1.541032]
[1641930792742,0.00341054,3244.0,3243.9,1.541032]
[1641930793738,0.00341054,3244.0,3243.8,0.38251573]
[1641930794137,0.00284212,3243.9,3243.8,6.10310573]
[1641930794537,0.00284212,3243.9,3243.8,5.33251573]
[1641930795489,0.00284212,3243.9,3243.8,6.33251573]
[1641930796290,0.00284212,3243.9,3243.8,7.10312573]
[1641930796488,0.00284212,3243.9,3243.8,6.33251573]
[1641930796889,0.00284212,3243.9,3243.8,0.25]
[1641930797292,0.00284212,3243.9,3242.8,2.74085]
[1641930797293,0.44984212,3243.9,3242.8,2.74085]
[1641930797492,0.74984212,3243.9,3242.9,0.25]
[1641930797688,0.00227369,3243.8,3243.2,0.00113684]
[1641930797893,0.91733783,3243.5,3243.2,0.00113684]
[1641930798490,0.91733783,3243.5,3243.0,0.00227369]
[1641930800041,0.44870527,3243.7,3243.0,0.00227369]
[1641930800344,0.00113685,3243.6,3243.2,0.77071]
[1641930800551,0.00113685,3243.6,3243.1,1.54141]
[1641930800741,0.447,3244.1,3243.1,2.3121979]
[1641930800942,0.447,3244.1,3243.2,0.00113685]
[1641930801142,0.90088174,3243.9,3243.2,0.00113685]
[1641930801543,0.00227369,3243.8,3243.2,0.00113685]
[1641930801944,0.00170527,3243.7,3243.2,0.00113685]
[1641930802344,0.00113685,3243.6,3243.2,0.00113685]
[1641930802584,0.00113685,3243.6,3243.2,0.77187685]
[1641930802785,0.00227369,3243.8,3243.3,0.7707508]
[1641930802985,0.00227369,3243.8,3243.2,0.00113685]
[1641930803191,0.00170527,3243.7,3243.4,0.77064]
[1641930803389,0.00170527,3243.7,3243.4,1.54126]
[1641930803590,0.00113685,3243.6,3243.5,0.77058]
[1641930803792,0.00113685,3243.6,3243.5,8.16708]
[1641930803987,0.00113685,3243.6,3243.5,8.93766]
[1641930804192,0.00113685,3243.6,3243.5,1.71708]
[1641930804392,0.00113685,3243.6,3243.5,0.9465]
[1641930805091,0.00113685,3243.6,3243.5,4.5]
[1641930805992,0.00113685,3243.6,3243.5,7.45]
[1641930808947,0.00113685,3243.6,3243.5,11.0908]
[1641930809544,0.00113685,3243.6,3243.5,11.6908]
[1641930809746,0.00113685,3243.6,3243.5,11.0908]
[1641930810185,2.82580954,3245.1,3243.6,6.45]
[1641930810385,2.82580954,3245.3,3244.4,1.5408707]
[1641930810586,0.00795793,3245.0,3244.4,3.6541]
[1641930810784,0.00795793,3245.0,3244.4,3.9041]
[1641930810987,0.0073895,3244.9,3244.4,3.9041]
[1641930811384,0.00682108,3244.8,3244.4,3.9041]
[1641930811787,0.00625265,3244.7,3244.4,3.9041]
[1641930812089,0.99016161,3244.6,3244.4,3.9041]
[1641930812487,0.00511581,3244.5,3244.4,3.9041]
[1641930812688,0.00511581,3244.5,3244.4,0.25]
[1641930817982,0.00511581,3244.5,3244.4,1.02048]
[1641930818792,0.00511581,3244.5,3244.4,0.25]
[1641930819489,0.45211581,3244.5,3244.4,0.25]
[1641930823740,0.00511581,3244.5,3244.4,7.7487]
[1641930823950,0.00511581,3244.5,3244.4,10.90229311]
[1641930824140,0.00511581,3244.5,3244.4,11.90229311]
[1641930824540,0.00511581,3244.5,3244.4,13.14499311]
[1641930824739,0.00511581,3244.5,3244.4,14.13404749]
[1641930824996,0.00511581,3244.5,3244.4,3.5414]
[1641930825392,0.00511581,3244.5,3244.4,6.1681585]
[1641930826690,0.00511581,3244.5,3244.4,3.5414]
[1641930826890,0.00511581,3244.5,3244.4,2.5414]
[1641930827090,0.00511581,3244.5,3244.4,3.5414]
[1641930827891,0.00511581,3244.5,3244.4,2.5414]
[1641930828732,0.00511581,3244.5,3244.4,5.1414]
[1641930829141,0.00511581,3244.5,3244.4,6.1414]
[1641930829536,0.00511581,3244.5,3244.4,1.4927]
[1641930829738,0.447,3245.6,3244.5,2.65]
[1641930829739,1.12263581,3245.2,3244.5,2.65]
[1641930829935,0.90381589,3245.1,3244.5,2.65]
[1641930830138,0.90381589,3245.1,3244.4,1.4927]
[1641930830540,1.12263581,3245.2,3244.6,0.77048]
[1641930830541,0.447,3245.2,3244.6,0.77048]
[1641930830744,0.3,3245.1,3244.6,0.77048]
[1641930830943,0.00341054,3245.1,3244.4,1.4927]
[1641930831145,0.00284212,3245.0,3244.4,1.4927]
[1641930831444,0.447,3245.2,3244.4,1.4927]
[1641930831445,0.00227369,3244.9,3244.4,1.4927]
[1641930831648,0.00227369,3244.9,3244.5,1.54078]
[1641930831843,0.00170527,3244.8,3244.5,1.54078]
[1641930832242,0.00113684,3244.7,3244.5,1.54078]
[1641930832703,0.00397896,3245.2,3244.5,1.54078]
[1641930833103,0.00341054,3245.1,3244.5,5.88158]
[1641930833307,0.00341054,3245.1,3244.5,6.6519964]
[1641930833606,0.00284212,3245.0,3244.8,0.7704]
[1641930834007,0.00227369,3244.9,3244.8,0.7704]
[1641930834218,0.45113963,3246.7,3245.0,6.45]
[1641930834414,0.1609543,3246.9,3245.2,6.45]
[1641930834611,1.20132528,3247.2,3245.9,0.77015]
[1641930834816,1.20132528,3247.2,3246.0,2.82580954]
[1641930835016,0.01250532,3247.1,3245.9,2.1432]
[1641930835214,0.70442691,3247.1,3246.0,3.6009]
[1641930835410,1.20132528,3247.2,3246.0,3.6009]
[1641930835613,0.123374,3247.2,3246.1,2.82580954]
[1641930835811,0.123374,3247.2,3246.1,4.2903]
[1641930836012,0.123374,3247.2,3246.2,0.00511581]
[1641930836637,2.94918354,3247.2,3246.2,0.00511581]
[1641930836844,0.03808264,3247.1,3246.2,0.00511581]
[1641930837039,0.77014,3247.0,3246.2,0.00511581]
[1641930837439,0.570374,3247.2,3246.2,0.00511581]
[1641930838140,18.15815194,3247.1,3246.2,0.00511581]
[1641930838346,1.54051,3246.9,3246.2,0.00511581]
[1641930838544,1.21729,3246.8,3246.1,0.00568424]
[1641930838843,0.3,3246.7,3246.1,0.00568424]
[1641930839046,1.07702674,3246.4,3246.1,0.00568424]
[1641930839244,1.52402674,3246.4,3246.1,0.00568424]
[1641930840690,2.12402674,3246.4,3246.1,0.00568424]
[1641930841191,6.45,3246.0,3245.5,0.25]
[1641930841397,6.45,3246.0,3245.0,3.6424]
[1641930841398,1.541,3245.8,3245.0,3.6424]
[1641930841591,6.147,3245.7,3245.6,0.00170527]
[1641930841991,6.147,3245.7,3244.9,0.25]
[1641930841992,0.3,3245.6,3245.0,0.00511581]
[1641930842198,0.447,3245.5,3245.0,0.00511581]
[1641930842594,1.14262364,3245.4,3245.0,0.00511581]
[1641930842794,0.447,3245.3,3245.0,0.00511581]
[1641930843394,0.447,3245.3,3244.6,9.06273]
[1641930843594,0.00113684,3245.2,3244.6,9.06273]
[1641930843842,0.44813684,3245.2,3244.7,0.00170528]
[1641930844442,0.44813684,3245.2,3244.7,0.77206888]
[1641930844847,0.44813684,3245.2,3244.8,0.00113685]
[1641930845851,0.00113684,3245.2,3244.8,0.00113685]
[1641930846449,0.00113684,3245.2,3244.8,3.95903685]
[1641930847149,0.00113684,3245.2,3244.8,0.00113685]
[1641930847355,0.44813684,3245.2,3244.8,0.00113685]
[1641930851338,0.00113684,3245.2,3244.8,0.00113685]
[1641930853143,0.5309655,3245.1,3244.8,0.00113685]
[1641930853344,0.447,3245.1,3244.8,0.00113685]
[1641930853543,0.747,3245.1,3244.8,0.00113685]
[1641930853743,2.83196329,3245.0,3244.8,0.00113685]
[1641930853948,1.047,3245.1,3244.8,0.00113685]
[1641930853949,4.14296359,3244.9,3244.8,0.00113685]
[1641930854542,4.14296359,3244.9,3244.5,0.00284212]
[1641930855008,1.34296359,3244.9,3244.5,0.00284212]
[1641930858404,1.81372772,3244.9,3244.5,0.00284212]
[1641930858607,3.34305275,3244.8,3244.5,0.00284212]
[1641930858838,0.447,3244.7,3244.5,0.00284212]
[1641930859037,7.52263581,3244.6,3244.5,0.00284212]
[1641930859237,7.96963581,3244.6,3244.5,0.00284212]
[1641930859441,8.26963581,3244.6,3244.5,0.00284212]
[1641930859641,7.96963581,3244.6,3244.5,0.00284212]
[1641930859847,0.747,3244.6,3244.5,0.00284212]
[1641930860042,0.447,3244.6,3244.5,0.00284212]
[1641930860445,4.297,3244.6,3244.5,0.00284212]
[1641930860643,4.897,3244.6,3244.5,0.00284212]
[1641930861245,4.897,3244.6,3243.5,3.6151]
[1641930861246,0.0028,3244.5,3243.5,3.6151]
[1641930861444,0.0028,3244.5,3243.1,3.94069775]
[1641930861445,0.447,3244.4,3243.1,3.94069775]
[1641930861643,8.38129158,3244.3,3243.6,0.00511581]
[1641930861844,0.447,3244.2,3243.6,0.00511581]
[1641930862044,1.747,3244.2,3243.6,0.00511581]
[1641930862243,0.60713767,3244.0,3243.6,0.00511581]
[1641930862494,0.48191557,3243.9,3243.6,0.00511581]
[1641930862688,0.447,3243.9,3243.6,0.00511581]
[1641930862888,0.447,3243.9,3242.8,0.0096632]
[1641930863210,0.50802485,3243.5,3242.8,0.0096632]
[1641930863389,0.447,3243.4,3242.8,0.0096632]
[1641930863688,0.96501812,3243.1,3242.8,0.0096632]
[1641930864492,0.96501812,3243.1,3242.7,3.6034]
[1641930864694,2.84525169,3243.0,3242.7,3.6034]
[1641930864893,0.00113684,3243.0,3242.7,3.6034]
[1641930865096,0.53835351,3242.9,3242.5,4.3623]
[1641930865299,2.82919582,3243.0,3242.5,4.3623]
[1641930865300,3.00395434,3243.0,3242.5,4.3623]
[1641930865495,2.9425503,3243.0,3242.6,0.00113685]
[1641930865704,0.447,3242.9,3242.6,0.00113685]
[1641930865995,0.747,3242.9,3241.9,0.00511581]
[1641930866240,0.51721996,3242.8,3241.9,0.00511581]
[1641930866442,0.447,3242.7,3241.9,0.00511581]
[1641930867447,0.97409953,3242.3,3241.9,0.00511581]
[1641930868448,0.447,3242.7,3241.9,0.00511581]
[1641930868851,0.00113684,3243.0,3242.0,0.01727509]
[1641930869047,0.00113684,3243.0,3242.5,0.01242431]
[1641930870402,0.5757279,3242.6,3242.1,0.00397897]
[1641930870598,0.3,3242.6,3242.1,0.00397897]
[1641930870801,0.00113684,3243.0,3242.1,0.00397897]
[1641930870996,0.99386838,3242.3,3241.9,0.00511581]
[1641930871997,1.29386838,3242.3,3241.9,0.00511581]
[1641930872799,0.3,3242.3,3241.9,0.00511581]
[1641930872999,0.747,3242.7,3241.9,0.00511581]
[1641930873840,0.447,3242.7,3241.9,0.00511581]
[1641930874843,1.18426579,3242.9,3241.9,0.00511581]
[1641930876544,1.18426579,3242.9,3241.9,2.84669415]
[1641930876745,0.88426579,3242.9,3241.9,0.00511581]
[1641930876946,0.88426579,3242.9,3242.0,0.00454739]
[1641930877145,0.00113684,3243.0,3241.9,3.90994108]
[1641930877346,0.00113684,3243.0,3242.0,2.47954739]
[1641930877593,0.00113684,3243.0,3242.4,0.01227362]
[1641930877990,0.00113684,3243.0,3242.5,0.00170527]
[1641930879505,0.00113684,3243.0,3242.5,3.06908997]
[1641930879699,0.00113684,3243.0,3242.6,8.7428]
[1641930879899,0.00113684,3243.0,3242.7,2.93757705]
[1641930880104,0.00113684,3243.0,3242.8,1.0]
[1641930880298,0.00113684,3243.0,3242.9,11.1639]
[1641930880702,0.00113684,3243.0,3242.9,12.1639]
[1641930881337,0.00113684,3243.0,3242.9,7.45]
[1641930884344,0.00113684,3243.0,3242.9,6.45]
[1641930884545,0.00113684,3243.0,3242.6,8.7428]
[1641930885393,0.00113684,3243.0,3242.7,1.0]
[1641930885593,0.00113684,3243.0,3242.7,2.0894]
[1641930885995,0.00113684,3243.0,3242.7,2.95093501]
[1641930886897,0.00113684,3243.0,3242.8,2.62732666]
[1641930887196,0.00113684,3243.0,3242.9,7.45]
[1641930887594,0.00113684,3243.0,3242.9,10.66264028]
[1641930888837,0.00113684,3243.0,3242.9,10.34091351]
[1641930889043,0.00113684,3243.0,3242.9,12.96824017]
[1641930889237,0.00113684,3243.0,3242.9,10.07732666]
[1641930889639,0.00113684,3243.0,3242.9,13.08791203]
[1641930890244,0.00113684,3243.0,3242.9,13.38791203]
[1641930890446,0.00113684,3243.0,3242.9,13.68791203]
[1641930890643,0.00113684,3243.0,3242.9,13.38791203]
[1641930891449,0.80495029,3245.7,3243.1,0.01727509]
[1641930891655,0.123421,3246.0,3243.1,0.01727509]
[1641930891656,0.123421,3246.0,3244.5,0.01214881]
[1641930891948,0.01080005,3244.9,3244.5,0.96554878]
[1641930892149,0.01080005,3244.9,3244.6,7.9068]
[1641930892507,0.01023163,3244.8,3244.6,7.9068]
[1641930892699,0.01023163,3244.8,3244.7,7.45]
[1641930892899,1.14929392,3245.6,3244.7,7.45]
[1641930892900,1.14929392,3245.6,3244.7,1.0]
[1641930893101,1.14929392,3245.6,3244.6,5.1299]
[1641930893303,0.01421059,3245.5,3244.6,5.1299]
[1641930893704,0.01364217,3245.4,3244.7,2.62732666]
[1641930893902,1.0685686,3245.1,3244.7,3.62732666]
[1641930894306,0.01136848,3245.0,3244.7,3.62732666]
[1641930894712,0.01080005,3244.9,3244.6,3.9721]
[1641930895109,0.01023163,3244.8,3244.6,3.9721]
[1641930895505,0.0096632,3244.7,3244.6,3.9721]
[1641930896348,0.07237241,3244.6,3242.8,4.3851]
[1641930896543,0.0096632,3244.7,3243.0,2.77728178]
[1641930896544,0.8451632,3244.7,3243.0,2.77728178]
[1641930896743,0.00852636,3244.5,3243.0,2.77728178]
[1641930897050,0.00795793,3244.4,3243.0,2.77728178]
[1641930897248,3.99910463,3244.4,3243.0,2.77728178]
[1641930897450,0.61651393,3243.4,3243.0,1.53898178]
[1641930897647,0.61651393,3243.4,3243.1,2.62718809]
[1641930897648,1.5463,3243.4,3243.1,2.62718809]
[1641930897845,0.00170528,3243.3,3243.1,2.62718809]
[1641930898248,0.00113685,3243.2,3243.1,2.62718809]
[1641930898848,0.00113685,3243.2,3242.8,4.74179687]
[1641930899047,0.00113685,3243.2,3242.8,3.94078213]
[1641930899246,0.00113685,3243.2,3242.5,5.09920527]
[1641930899655,0.00113685,3243.2,3242.6,0.00227369]
[1641930900017,0.00113685,3243.2,3242.6,1.00227369]
[1641930900408,0.00113685,3243.2,3242.7,0.00170526]
[1641930901110,0.94915073,3243.1,3242.7,0.00170526]
[1641930901510,0.00113685,3243.2,3242.7,0.00170526]
[1641930901910,0.00113685,3243.2,3242.7,2.6293104]
[1641930902314,0.00113685,3243.2,3242.8,0.00113684]
[1641930902511,1.04026998,3243.2,3242.8,0.00113684]
[1641930903111,1.04026998,3243.2,3242.7,0.00170526]
[1641930903610,0.00113685,3243.2,3242.7,0.00170526]
[1641930904543,1.12548827,3243.2,3242.7,0.00170526]
[1641930904949,0.3,3243.1,3242.7,0.00170526]
[1641930906744,0.3,3243.1,3242.5,0.00284211]
[1641930906945,1.42548827,3243.2,3242.5,0.00284211]
[1641930907345,1.12548827,3243.2,3242.5,0.00284211]
[1641930907791,1.42548827,3243.2,3242.5,0.00284211]
[1641930907993,1.12548827,3243.2,3242.5,0.00284211]
[1641930908595,0.00113685,3243.2,3242.4,0.00341053]
[1641930908793,0.00113685,3243.2,3242.4,1.00341053]
[1641930909196,0.00113685,3243.2,3242.5,0.00284211]
[1641930909398,0.00113685,3243.2,3242.5,2.63044725]
[1641930909797,0.00113685,3243.2,3242.6,0.00227369]
[1641930910001,0.00113685,3243.2,3242.6,1.00227369]
[1641930910206,0.00113685,3243.2,3242.6,2.25087369]
[1641930910397,0.00113685,3243.2,3242.7,0.00170526]
[1641930911448,0.00113685,3243.2,3242.7,2.6293104]
[1641930911650,0.00113685,3243.2,3242.8,1.0]
[1641930911851,0.00113685,3243.2,3242.8,1.00113684]
[1641930912051,0.00113685,3243.2,3242.9,2.93506851]
[1641930912452,0.00113685,3243.2,3243.0,1.0]
[1641930912650,0.00113685,3243.2,3243.1,9.46032844]
[1641930912854,0.00113685,3243.2,3243.1,6.45]
[1641930913053,0.00113685,3243.2,3243.1,7.45]
[1641930913252,0.00113685,3243.2,3243.1,10.07760514]
[1641930913458,0.00113685,3243.2,3243.1,12.93856095]
[1641930913652,0.00113685,3243.2,3243.1,10.07760514]
[1641930914256,0.00113685,3243.2,3243.1,2.62760514]
[1641930915996,0.00113685,3243.2,3243.0,4.801]
[1641930916396,1.15762375,3243.2,3243.0,4.801]
[1641930916597,1.15762375,3243.2,3242.8,0.00113684]
[1641930916997,1.15762375,3243.2,3242.5,0.00284211]
[1641930918398,1.15762375,3243.2,3242.3,0.00397896]
[1641930918600,1.15762375,3243.2,3242.3,1.00397896]
[1641930919046,1.15762375,3243.2,3242.4,0.00341053]
[1641930919444,0.00113685,3243.2,3242.4,0.00341053]
[1641930919646,0.00113685,3243.2,3242.4,3.38345186]
[1641930919843,0.00113685,3243.2,3242.5,1.1675]
[1641930920048,0.00113685,3243.2,3242.6,3.13793732]
[1641930920246,0.00113685,3243.2,3242.6,3.14021101]
[1641930920552,0.00113685,3243.2,3242.7,0.00170526]
[1641930922145,0.00113685,3243.2,3242.7,2.62920748]
[1641930922601,0.00113685,3243.2,3242.8,3.93201585]
[1641930922799,0.00113685,3243.2,3242.8,7.89861585]
[1641930923000,0.00113685,3243.2,3242.9,5.1994]
[1641930923508,3.685e-05,3243.2,3243.1,7.60349146]
[1641930923706,3.685e-05,3243.2,3243.1,7.20963804]
[1641930923907,3.685e-05,3243.2,3243.1,12.65813804]
[1641930924711,3.685e-05,3243.2,3243.1,30.76813804]
[1641930925407,3.685e-05,3243.2,3243.1,38.87561496]
[1641930925606,1.15845854,3245.0,3243.1,38.87561496]
[1641930925811,1.15845854,3245.0,3243.2,24.41140587]
[1641930926007,0.0096632,3244.9,3243.2,24.41140587]
[1641930926253,0.0096632,3244.9,3243.3,19.2594]
[1641930926548,1.11698435,3244.5,3243.4,4.17112742]
[1641930926746,1.11698435,3244.5,3243.4,1.0]
[1641930926948,0.00682108,3244.4,3243.4,1.0]
[1641930927148,0.00682108,3244.4,3243.3,1.7494]
[1641930927345,0.00625266,3244.3,3243.3,1.7494]
[1641930927749,0.00568424,3244.2,3243.5,2.62750222]
[1641930927956,0.00568424,3244.2,3243.5,3.22750222]
[1641930928156,0.00511581,3244.1,3243.6,1.0]
[1641930928361,0.00511581,3244.1,3243.6,19.11]
[1641930928555,0.00454739,3244.0,3243.7,1.1917]
[1641930928756,0.00454739,3244.0,3243.8,3.9962]
[1641930928956,0.00397897,3243.9,3243.8,11.8088]
[1641930931002,0.00397897,3243.9,3243.8,12.1088]
[1641930931203,0.00397897,3243.9,3243.8,12.4088]
[1641930932007,1.50397897,3243.9,3243.8,12.4088]
[1641930932207,1.50397897,3243.9,3243.8,0.6]
[1641930932405,5.4678,3245.7,3243.8,0.6]
[1641930932606,5.4678,3245.7,3243.9,29.74152448]
[1641930932806,5.4678,3245.7,3243.9,30.04152448]
[1641930932807,0.00909477,3245.5,3243.9,30.04152448]
[1641930933006,0.00909477,3245.5,3244.0,0.3]
[1641930933207,2.77447714,3245.6,3244.2,0.84790107]
[1641930933208,0.00852635,3245.4,3244.2,0.84790107]
[1641930933407,0.00852635,3245.4,3244.0,0.747]
[1641930933611,0.00795793,3245.3,3244.0,0.747]
[1641930934045,1.3678262,3245.6,3244.0,0.747]
[1641930934046,0.0073895,3245.2,3244.0,4.68611698]
[1641930934446,0.00682108,3245.1,3244.0,4.68611698]
[1641930934646,0.94277359,3245.0,3244.0,4.68611698]
[1641930934848,0.94902625,3245.0,3244.0,4.68611698]
[1641930935047,0.00568423,3244.9,3244.0,4.68611698]
[1641930935247,1.1859,3246.2,3244.1,9.55289162]
[1641930935447,1.1859,3246.2,3244.2,4.3955]
[1641930935645,0.00341054,3245.5,3244.3,3.06377111]
[1641930935847,0.00341054,3245.5,3244.3,3.06718165]
[1641930936046,0.00284212,3245.4,3244.4,0.00284212]
[1641930936253,0.82976412,3245.4,3244.5,0.01298215]
[1641930936448,0.0022737,3245.3,3244.5,0.01298215]
[1641930936648,0.0022737,3245.3,3244.6,0.00170527]
[1641930936849,0.00170527,3245.2,3244.6,0.00170527]
[1641930937150,0.826922,3245.4,3244.2,4.3955]
[1641930937151,0.00113685,3245.1,3244.3,0.00341054]
[1641930937600,1.01633415,3244.7,3244.3,0.00341054]
[1641930938300,1.01633415,3244.7,3244.1,0.00454739]
[1641930938502,1.01633415,3244.7,3244.0,0.30511581]
[1641930938702,1.01633415,3244.7,3244.1,0.00454739]
[1641930939501,0.03214991,3244.7,3244.1,0.00454739]
[1641930941552,0.03214991,3244.7,3244.1,2.90248002]
[1641930941746,0.0022737,3245.3,3244.1,2.90248002]
[1641930941947,0.0022737,3245.3,3244.2,0.00397896]
[1641930942147,0.00170527,3245.2,3244.2,0.00397896]
[1641930942348,0.00170527,3245.2,3244.0,0.00511581]
[1641930942547,0.00113685,3245.1,3244.0,0.00511581]
[1641930942949,0.0022737,3245.3,3244.0,0.00511581]
[1641930943149,1.07632729,3245.3,3244.1,1.05939992]
[1641930943349,0.00170527,3245.2,3244.2,3.2087588]
[1641930943550,0.00170527,3245.2,3244.3,1.0]
[1641930943750,0.96594571,3245.3,3244.4,6.45]
[1641930943952,0.96594571,3245.3,3244.4,6.45284212]
[1641930944154,0.96594571,3245.3,3244.5,0.00341054]
[1641930946197,1.56594571,3245.3,3244.5,0.00341054]
[1641930946397,0.48754388,3245.2,3244.5,0.00341054]
[1641930946595,0.447,3245.2,3244.0,0.00625266]
[1641930947396,1.09408107,3244.7,3244.0,0.00625266]
[1641930948860,1.08571964,3244.7,3244.0,0.00625266]
[1641930950159,1.08571964,3244.7,3244.0,0.30625266]
[1641930950464,0.447,3245.8,3244.1,0.00568424]
[1641930950662,0.447,3245.8,3244.3,0.1959]
[1641930950863,0.00227369,3245.5,3244.3,0.1959]
[1641930951078,0.447,3245.4,3244.4,0.00397897]
[1641930951264,0.44870527,3245.4,3244.4,0.00397897]
[1641930951467,0.00113685,3245.3,3244.2,0.00511581]
[1641930951663,0.00113685,3245.3,3243.9,5.1654]
[1641930951664,0.98569459,3244.9,3244.0,0.00625266]
[1641930953301,0.447,3245.1,3244.0,2.86987309]
[1641930953502,0.00113685,3245.3,3244.0,2.86987309]
[1641930953704,0.00113685,3245.3,3244.1,1.00568424]
[1641930954101,0.00113685,3245.3,3244.2,0.00511581]
[1641930954508,0.97691725,3245.2,3244.2,0.00511581]
[1641930956857,0.97691725,3245.2,3244.0,0.00625266]
[1641930957062,1.0105865,3244.7,3244.0,0.00625266]
[1641930958064,0.51200718,3244.4,3244.0,0.00625266]
[1641930958266,2.8254534,3244.3,3244.0,0.00625266]
[1641930958465,3.30466032,3244.3,3244.0,0.00625266]
[1641930958665,0.447,3244.3,3244.0,0.00625266]
[1641930958866,0.447,3244.3,3243.4,3.93927166]
[1641930958867,0.447,3244.3,3243.5,0.00909478]
[1641930959267,0.85461664,3243.9,3243.5,0.00909478]
[1641930959669,0.85461664,3243.9,3243.4,0.0096632]
[1641930959865,0.85461664,3243.9,3243.1,0.01136847]
[1641930960296,0.62551341,3243.3,3243.1,0.01136847]
[1641930960501,1.0508,3243.5,3243.1,0.01136847]
[1641930960696,1.4978,3243.5,3243.1,0.01136847]
[1641930960897,1.4978,3243.5,3242.8,7.74027166]
[1641930960898,1.4978,3243.5,3242.9,0.01250532]
[1641930961099,0.91150242,3243.2,3242.9,0.01250532]
[1641930961797,0.447,3243.5,3242.9,0.01250532]
[1641930962600,0.447,3243.5,3243.0,2.62711585]
[1641930962799,0.88424606,3243.4,3243.0,2.62711585]
[1641930963000,0.88424606,3243.4,3243.1,0.01136847]
[1641930964550,0.88424606,3243.4,3242.9,0.01250532]
[1641930964757,0.52803261,3243.3,3242.9,0.01250532]
[1641930964953,0.52803261,3243.3,3243.2,2.62713209]
[1641930965152,0.88424606,3243.4,3243.2,2.62713209]
[1641930965351,0.88424606,3243.4,3243.2,2.63793214]
[1641930965551,0.88424606,3243.4,3243.3,0.01023162]
[1641930965955,0.447,3243.5,3243.3,0.01023162]
[1641930966354,0.447,3243.5,3243.1,0.01136847]
[1641930967156,1.59019447,3243.5,3242.9,0.01250532]
[1641930967996,1.59019447,3243.5,3243.2,2.62707185]
[1641930968398,1.59019447,3243.5,3243.3,0.01023162]
[1641930968998,0.447,3243.5,3243.3,0.01023162]
[1641930969198,0.447,3243.5,3243.1,0.01136847]
[1641930969800,0.447,3243.5,3242.9,0.01250532]
[1641930971456,4.9746,3244.7,3242.9,0.01250532]
[1641930971457,0.447,3243.9,3242.9,0.01250532]
[1641930971659,3.9746,3244.7,3243.0,0.01727509]
[1641930971857,3.9746,3244.7,3243.2,0.01201075]
[1641930971858,1.1279,3244.7,3243.2,0.01201075]
[1641930972256,5.8677,3244.8,3243.3,0.01023162]
[1641930972561,1.0389607,3244.4,3243.3,0.01023162]
[1641930972757,1.0389607,3244.4,3243.3,4.30847589]
[1641930972959,1.0389607,3244.4,3243.3,4.60847589]
[1641930973157,1.0389607,3244.4,3243.4,1.0096632]
[1641930973562,1.0389607,3244.4,3243.5,0.00909478]
[1641930973963,1.0389607,3244.4,3243.4,0.0096632]
[1641930974164,1.0389607,3244.4,3243.4,1.0]
[1641930974362,1.0389607,3244.4,3243.4,1.3096632]
[1641930974561,1.0389607,3244.4,3243.5,0.00909478]
[1641930975401,1.0389607,3244.4,3243.4,0.0096632]